fUSD/lending_fUSD_20250426
["ID","MTS","AMOUNT","RATE_DAILY","PERIOD"]
[359006441,1745625603867,1929.21,0.0001778,2]
[359006445,1745625878187,150.0,0.00019404,7]
[359006446,1745625878827,200.22,0.00027425,30]
[359006447,1745625881975,175.19,0.00015523,2]
[359006455,1745626085657,250.0,0.00017,2]
[359006456,1745626086735,300.0,0.00019,2]
[359006457,1745626120907,-177.519776,0.00019375,2]
[359006458,1745626120932,-112.86739663,0.00019473,2]
[359006459,1745626126782,-87.13260337,0.00019473,2]
[359006460,1745626126804,-193.76,0.00019478,2]
[359006461,1745626126827,-500.0,0.00019622,2]
[359006462,1745626126849,-46.36606488,0.000198,2]
[359006463,1745626134270,-300.0,0.000198,2]
[359006464,1745626138119,-228.00681,0.000198,2]
[359006465,1745626142631,-152.0,0.000198,2]
[359006466,1745626151712,-271.03250172,0.000198,2]
[359006467,1745626152065,-271.03250172,0.000198,2]
[359006468,1745626159204,-152.0,0.000198,2]
[359006469,1745626163536,-189.62342168,0.000198,2]
[359006470,1745626163559,-4.80199901,0.00019809,2]
[359006471,1745626171907,-165.1517837,0.0001975,2]
[359006481,1745626174533,-167.93,0.0001975,2]
[359006482,1745626181388,-199.98157304,0.0001975,2]
[359006483,1745626184850,-367.33255929,0.0001975,2]
[359006486,1745626191709,-99.60408397,0.0001975,2]
[359006487,1745626193388,-182.98849156,0.00019674,2]
[359006488,1745626199205,-241.72342096,0.00019674,2]
[359006489,1745626204392,-300.0,0.00019673,2]
[359006490,1745626209140,-666.50582,0.00019673,2]
[359006491,1745626216551,-233.49418,0.00019673,2]
[359006492,1745626216576,-11.05987367,0.00019673,2]
[359006493,1745626222186,-288.94012633,0.00019673,2]
[359006494,1745626222215,-331.77100159,0.00019674,2]
[359006501,1745626234345,-180.51226124,0.00019674,2]
[359006502,1745626238150,-7912.84201986,0.00019674,2]
[359006503,1745626238163,-1111.59726643,0.00019674,2]
[359006504,1745626238406,-13938.56553836,0.00019674,2]
[359006505,1745626238415,-636.39032938,0.00019794,2]
[359006506,1745626238426,-500.0,0.00019794,2]
[359006507,1745626238436,-249.89642294,0.00019794,2]
[359006508,1745626238445,-500.0,0.00019794,2]
[359006509,1745626238455,-277733.6345006,0.00019795,2]
[359006511,1745626238465,-250.0,0.00019851,2]
[359006513,1745626238475,-1000.0,0.00019885,2]
[359006515,1745626238485,-500.0,0.00019886,2]
[359006517,1745626238494,-36200.1625,0.00019886,2]
[359006519,1745626238504,-1000.0,0.00019886,2]
[359006521,1745626238514,-574.48809364,0.00019886,2]
[359006523,1745626238523,-574.48809364,0.00019886,2]
[359006525,1745626238533,-2510.7938,0.00019886,2]
[359006527,1745626238543,-1663.8467,0.00019886,2]
[359006529,1745626238552,-29652.9733,0.00019886,2]
[359006531,1745626238562,-1000.0,0.00019886,2]
[359006533,1745626238573,-2500.0,0.00019886,2]
[359006535,1745626238584,-104898.2039672,0.00019886,2]
[359006537,1745626238593,-6509.078,0.00019886,2]
[359006539,1745626238604,-1307.4031,0.00019886,2]
[359006541,1745626238613,-570.3563,0.00019886,2]
[359006543,1745626238623,-17313.1009,0.000199,2]
[359006545,1745626238632,-364.9273484,0.000199,2]
[359006547,1745626238642,-225.0,0.000199,2]
[359006549,1745626238651,-1522.88358078,0.000199,2]
[359006551,1745626238661,-754.6213391,0.000199,2]
[359006553,1745626238670,-25900.36417058,0.000199,2]
[359006555,1745626238680,-179.83863593,0.000199,2]
[359006557,1745626238689,-212.99892041,0.000199,2]
[359006559,1745626238700,-500.0,0.00019973,2]
[359006561,1745626238709,-504.81971164,0.00019973,2]
[359006563,1745626238718,-500.0,0.00019973,2]
[359006565,1745626238728,-500.0,0.00019973,2]
[359006567,1745626238738,-500.0,0.00019973,2]
[359006569,1745626238748,-4438.142,0.00019973,2]
[359006571,1745626238758,-178.191,0.00019973,2]
[359006572,1745626238767,-8621.5079687,0.00019986,2]
[359006574,1745626238777,-19880.0107659,0.00019986,2]
[359006575,1745626238787,-842.6801402,0.00019986,2]
[359006576,1745626238796,-151.0,0.00019988,2]
[359006577,1745626238806,-207.4,0.00019988,2]
[359006578,1745626238815,-300.0,0.00019999,2]
[359006579,1745626238826,-300.0,0.00019999,2]
[359006580,1745626238837,-181.00526119,0.00019999,2]
[359006581,1745626238848,-151.0,0.00019999,2]
[359006582,1745626238859,-153.39783772,0.00019999,2]
[359006583,1745626238870,-225.52604641,0.00019999,2]
[359006584,1745626238880,-500.0,0.00019999,2]
[359006585,1745626238891,-235.91509748,0.00019999,2]
[359006586,1745626238902,-500.0,0.00019999,2]
[359006587,1745626238912,-500.0,0.00019999,2]
[359006588,1745626238922,-455.0449967,0.00019999,2]
[359006589,1745626238932,-500.0,0.00019999,2]
[359006590,1745626238943,-500.0,0.00019999,2]
[359006591,1745626238955,-500.0,0.00019999,2]
[359006592,1745626238966,-500.0,0.00019999,2]
[359006593,1745626238977,-500.0,0.00019999,2]
[359006594,1745626238989,-500.0,0.00019999,2]
[359006596,1745626239000,-500.0,0.00019999,2]
[359006598,1745626239010,-550.0,0.00019999,2]
[359006600,1745626239019,-500.0,0.00019999,2]
[359006602,1745626239031,-500.0,0.00019999,2]
[359006603,1745626239042,-500.0,0.00019999,2]
[359006605,1745626239052,-1297.0,0.0002,2]
[359006608,1745626239064,-3212365.64058183,0.0002,2]
[359006610,1745626239077,-1529105.36314699,0.0002,2]
[359006612,1745626239086,-1009.30157326,0.0002,2]
[359006614,1745626239095,-1757.89332187,0.0002,2]
[359006616,1745626239105,-250.0,0.0002,2]
[359006618,1745626239115,-250.0,0.0002,2]
[359006620,1745626239124,-250.0,0.0002,2]
[359006622,1745626239134,-250.0,0.0002,2]
[359006624,1745626239143,-250.0,0.0002,2]
[359006625,1745626239152,-250.0,0.0002,2]
[359006627,1745626239162,-250.0,0.0002,2]
[359006629,1745626239172,-250.0,0.0002,2]
[359006631,1745626239182,-250.0,0.0002,2]
[359006633,1745626239191,-250.0,0.0002,2]
[359006635,1745626239200,-312.9,0.0002,2]
[359006637,1745626239210,-1000.0,0.0002,2]
[359006639,1745626239220,-1000.0,0.0002,2]
[359006641,1745626239229,-1000.0,0.0002,2]
[359006643,1745626239240,-1000.0,0.0002,2]
[359006645,1745626239249,-1000.0,0.0002,2]
[359006647,1745626239260,-1000.0,0.0002,2]
[359006650,1745626239270,-1000.0,0.0002,2]
[359006652,1745626239280,-1000.0,0.0002,2]
[359006654,1745626239292,-1000.0,0.0002,2]
[359006656,1745626239302,-1000.0,0.0002,2]
[359006658,1745626239314,-1000.0,0.0002,2]
[359006660,1745626239323,-1000.0,0.0002,2]
[359006662,1745626239333,-1000.0,0.0002,2]
[359006664,1745626239343,-1000.0,0.0002,2]
[359006665,1745626239353,-1000.0,0.0002,2]
[359006667,1745626239363,-1000.0,0.0002,2]
[359006669,1745626239372,-1000.0,0.0002,2]
[359006671,1745626239382,-1000.0,0.0002,2]
[359006673,1745626239393,-1000.0,0.0002,2]
[359006675,1745626239403,-1000.0,0.0002,2]
[359006677,1745626239413,-1000.0,0.0002,2]
[359006679,1745626239423,-1000.0,0.0002,2]
[359006681,1745626239433,-1000.0,0.0002,2]
[359006683,1745626239442,-1000.0,0.0002,2]
[359006685,1745626239452,-1000.0,0.0002,2]
[359006687,1745626239462,-1000.0,0.0002,2]
[359006689,1745626239471,-1000.0,0.0002,2]
[359006691,1745626239481,-1000.0,0.0002,2]
[359006693,1745626239492,-1000.0,0.0002,2]
[359006695,1745626239502,-1000.0,0.0002,2]
[359006697,1745626239512,-1000.0,0.0002,2]
[359006699,1745626239522,-695.12302457,0.0002,2]
[359006701,1745626239532,-160.24,0.0002,2]
[359006703,1745626239542,-200.0,0.00020009,2]
[359006705,1745626239552,-166.65,0.00020013,2]
[359006707,1745626239562,-1929.21,0.00020044,2]
[359006709,1745626239571,-150.99,0.00020145,2]
[359006711,1745626239581,-9728.14,0.00020165,2]
[359006713,1745626239590,-166.69,0.00020617,2]
[359006715,1745626239600,-266.77,0.00020647,2]
[359006717,1745626239610,-166.71,0.00020668,2]
[359006719,1745626239619,-351.29,0.000207,2]
[359006721,1745626239629,-350.0,0.00021,2]
[359006723,1745626239639,-166.65,0.00021114,2]
[359006725,1745626239648,-715.59202842,0.0002127,2]
[359006727,1745626239658,-250.0,0.00021313,2]
[359006729,1745626239668,-200.0,0.00021313,2]
[359006731,1745626239678,-250.0,0.00021318,2]
[359006733,1745626239689,-200.0,0.00021318,2]
[359006735,1745626239698,-156.587,0.00021357,2]
[359006737,1745626239708,-215.0738,0.00021357,2]
[359006739,1745626239718,-686.93,0.00021414,2]
[359006741,1745626239729,-420.0,0.00021429,2]
[359006743,1745626239739,-166.69,0.00021434,2]
[359006745,1745626239748,-1680.0,0.00021532,2]
[359006747,1745626239758,-1000.0,0.00021611,2]
[359006749,1745626239767,-250.0,0.00021641,2]
[359006751,1745626239777,-200.0,0.00021641,2]
[359006753,1745626239786,-266.77,0.00021734,2]
[359006755,1745626239796,-164.66,0.00021918,2]
[359006757,1745626239806,-152.0,0.00022,2]
[359006759,1745626239816,-364.92734838,0.00022023,2]
[359006761,1745626239826,-500.0,0.0002211,2]
[359006763,1745626239836,-1336.0,0.00022189,2]
[359006765,1745626239846,-979.055,0.00022189,2]
[359006767,1745626239856,-153.934,0.00022189,2]
[359006769,1745626239866,-796.0,0.00022189,2]
[359006771,1745626239875,-1286.0,0.00022189,2]
[359006773,1745626239885,-2061.0,0.00022189,2]
[359006775,1745626239894,-1010.166,0.00022189,2]
[359006777,1745626239904,-1445.0,0.00022189,2]
[359006779,1745626239913,-579.0,0.00022189,2]
[359006781,1745626239923,-548.0,0.00022189,2]
[359006783,1745626239932,-1134.0,0.00022189,2]
[359006785,1745626239942,-152.0,0.00022192,2]
[359006787,1745626239951,-4238.61462439,0.000222,3]
[359006789,1745626239961,-4238.61462428,0.000222,3]
[359006791,1745626239971,-4238.61462428,0.000222,3]
[359006793,1745626239984,-4238.61462428,0.000222,3]
[359006795,1745626239993,-166.65,0.00022215,2]
[359006797,1745626240003,-1000.0,0.00022218,2]
[359006799,1745626240012,-166.69,0.00022251,2]
[359006801,1745626240023,-1929.21,0.00022308,2]
[359006803,1745626240033,-2148.0,0.00022392,2]
[359006805,1745626240042,-6190.0,0.00022392,2]
[359006807,1745626240053,-3989.0,0.00022392,2]
[359006809,1745626240063,-244.191,0.00022392,2]
[359006811,1745626240072,-877.0,0.00022392,2]
[359006813,1745626240082,-258.71,0.00022392,2]
[359006815,1745626240092,-871.0,0.00022392,2]
[359006817,1745626240101,-3065.58993825,0.00022508,2]
[359006819,1745626240110,-4238.61462428,0.00022555,4]
[359006821,1745626240120,-826.64,0.00022562,2]
[359006823,1745626240129,-715.59202842,0.0002264,2]
[359006825,1745626240138,-162.380719,0.00022726,2]
[359006827,1745626240148,-223.0315306,0.00022726,2]
[359006829,1745626240157,-175.34,0.00022766,2]
[359006831,1745626240167,-266.77,0.00022821,2]
[359006833,1745626240176,-4238.61462428,0.00022969,4]
[359006835,1745626240185,-400.0,0.00023,2]
[359006837,1745626240195,-152.0,0.00023014,2]
[359006840,1745626240205,-166.69,0.00023068,2]
[359006842,1745626240215,-166.65,0.00023316,2]
[359006844,1745626240224,-587.0,0.00023341,2]
[359006846,1745626240233,-4238.61462428,0.00023383,4]
[359006848,1745626240244,-250.0,0.00023387,2]
[359006850,1745626240253,-197.0,0.00023387,2]
[359006852,1745626240263,-241.0,0.00023387,2]
[359006854,1745626240272,-163.0,0.00023387,2]
[359006855,1745626240282,-165.856,0.00023387,2]
[359006858,1745626240291,-189.763,0.00023387,2]
[359006861,1745626240300,-249.57,0.00023387,2]
[359006864,1745626240309,-150.0,0.00023387,2]
[359006867,1745626240319,-154.943,0.00023387,2]
[359006870,1745626240328,-150.479,0.00023387,2]
[359006873,1745626240337,-152.51,0.00023387,2]
[359006875,1745626240347,-253.434,0.00023387,2]
[359006878,1745626240356,-245.67,0.00023387,2]
[359006881,1745626240366,-182.404,0.00023387,2]
[359006884,1745626240376,-172.646,0.00023387,2]
[359006887,1745626240385,-258.844,0.00023387,2]
[359006891,1745626240395,-2351.0,0.00023567,2]
[359006894,1745626240405,-500.0,0.00023616,2]
[359006897,1745626240415,-4238.61462428,0.00023797,4]
[359006900,1745626240424,-500.83,0.00023836,2]
[359006903,1745626240438,-266.77,0.00023907,2]
[359006906,1745626240448,-2825.39361489,0.00024,14]
[359006910,1745626240459,-715.59202842,0.0002401,2]
[359006913,1745626240469,-166.71,0.00024079,2]
[359006916,1745626240478,-168.3888056,0.00024095,2]
[359006919,1745626240490,-231.28369723,0.00024095,2]
[359006922,1745626240500,-364.92734838,0.00024147,2]
[359006924,1745626240510,-152.0,0.00024164,2]
[359006927,1745626240519,-4238.61462428,0.0002421,5]
[359006930,1745626240530,-250.0,0.00024284,2]
[359006973,1745626240816,-1929.21,0.00024571,2]
[359006975,1745626240827,-4238.61462428,0.00024624,5]
[359006977,1745626240837,-1000.0,0.00024687,2]
[359006979,1745626240847,-474788.376921,0.000248,2]
[359006981,1745626240856,-500.0,0.0002485,2]
[359006983,1745626240866,-500.0,0.0002485,2]
[359006986,1745626240875,-500.0,0.0002485,2]
[359006988,1745626240885,-500.0,0.0002485,2]
[359006990,1745626240894,-500.0,0.0002485,2]
[359006991,1745626240904,-500.0,0.0002485,2]
[359006993,1745626240914,-500.0,0.0002485,2]
[359006996,1745626240925,-500.0,0.0002485,2]
[359006998,1745626240936,-500.0,0.0002485,2]
[359006999,1745626240947,-500.0,0.0002485,2]
[359007001,1745626240956,-160.08481333,0.0002485,2]
[359007003,1745626240965,-500.0,0.0002485,2]
[359007005,1745626240978,-500.0,0.0002485,2]
[359007007,1745626240987,-500.0,0.0002485,2]
[359007009,1745626240998,-500.0,0.0002485,2]
[359007011,1745626241008,-153.19649389,0.0002485,2]
[359007013,1745626241018,-500.0,0.0002485,2]
[359007015,1745626241027,-500.0,0.0002485,2]
[359007017,1745626241036,-505.01128963,0.0002485,2]
[359007019,1745626241046,-500.0,0.000249,2]
[359007021,1745626241057,-500.0,0.000249,2]
[359007023,1745626241067,-501.16822357,0.000249,2]
[359007025,1745626241076,-327973.87506139,0.000249,2]
[359007081,1745626241620,-205.19770654,0.00022188,2]
[359007083,1745626241630,-151.0,0.00022639,2]
[359007085,1745626241641,-4244.95229346,0.000249,2]
[359007097,1745626241909,-453.8784,0.000249,2]
[359007112,1745626242201,-3092.46451551,0.000249,2]
[359007113,1745626242215,-18611.61798189,0.000249,2]
[359007114,1745626242227,-251.45755002,0.000249,2]
[359007115,1745626242238,-1134.71174746,0.000249,2]
[359007245,1745626243477,-151.0,0.00024899,2]
[359007247,1745626243487,-411.6023957,0.000249,2]
[359007249,1745626243500,-232107.03769557,0.000249,2]
[359007252,1745626243510,-500.0,0.000249,2]
[359007254,1745626243519,-500.0,0.000249,2]
[359007256,1745626243529,-500.0,0.000249,2]
[359007257,1745626243538,-500.0,0.000249,2]
[359007259,1745626243548,-500.0,0.000249,2]
[359007261,1745626243557,-500.0,0.000249,2]
[359007264,1745626243567,-500.0,0.000249,2]
[359007266,1745626243577,-500.0,0.000249,2]
[359007268,1745626243587,-205.41801915,0.000249,2]
[359007269,1745626243597,-266.77,0.00024994,2]
[359007271,1745626243606,-450.0,0.00025,2]
[359007274,1745626243616,-4238.61462428,0.00025038,5]
[359007275,1745626243625,-1336.0,0.00025189,2]
[359007277,1745626243635,-919.0,0.00025189,2]
[359007280,1745626243645,-796.0,0.00025189,2]
[359007281,1745626243654,-1286.0,0.00025189,2]
[359007284,1745626243664,-2061.0,0.00025189,2]
[359007286,1745626243674,-911.0,0.00025189,2]
[359007287,1745626243684,-1445.0,0.00025189,2]
[359007289,1745626243693,-579.0,0.00025189,2]
[359007291,1745626243703,-548.0,0.00025189,2]
[359007293,1745626243712,-1522.88358076,0.00025242,2]
[359007295,1745626243722,-754.6213391,0.00025242,2]
[359007298,1745626243732,-25900.36417056,0.00025242,2]
[359007300,1745626243743,-715.59202842,0.00025379,2]
[359007302,1745626243752,-155.372,0.00025392,2]
[359007304,1745626243762,-6190.0,0.00025392,2]
[359007306,1745626243772,-3989.0,0.00025392,2]
[359007308,1745626243782,-152.0,0.00025392,2]
[359007310,1745626243791,-152.0,0.00025392,2]
[359007312,1745626243801,-877.0,0.00025392,2]
[359007314,1745626243810,-871.0,0.00025392,2]
[359007315,1745626243820,-821.0,0.00025425,2]
[359007318,1745626243829,-4238.61462428,0.00025452,6]
[359007319,1745626243839,-1000.0,0.00025452,2]
[359007322,1745626243849,-660.05643078,0.00025452,2]
[359007323,1745626243858,-1000.0,0.00025452,2]
[359007325,1745626243869,-1000.0,0.00025452,2]
[359007327,1745626243879,-174.61919141,0.00025464,2]
[359007329,1745626243888,-239.84119403,0.00025464,2]
[359007331,1745626243897,-152.0,0.00025775,2]
[359007333,1745626243908,-3292.0,0.00025794,2]
[359007335,1745626243917,-4238.61462428,0.00025866,6]
[359007337,1745626243927,-500.0,0.00025918,2]
[359007339,1745626243936,-266.77,0.00026081,2]
[359007341,1745626243945,-364.92734838,0.0002627,2]
[359007343,1745626243955,-4238.61462428,0.00026279,6]
[359007345,1745626243964,-150.0,0.00026387,2]
[359007348,1745626243974,-150.0,0.00026387,2]
[359007350,1745626243987,-150.0,0.00026387,2]
[359007352,1745626243998,-150.0,0.00026387,2]
[359007354,1745626244007,-150.0,0.00026387,2]
[359007356,1745626244017,-150.0,0.00026387,2]
[359007357,1745626244026,-150.0,0.00026387,2]
[359007359,1745626244035,-150.0,0.00026387,2]
[359007361,1745626244045,-150.0,0.00026387,2]
[359007363,1745626244055,-4238.61462428,0.00026693,6]
[359007365,1745626244066,-715.59202842,0.00026749,2]
[359007367,1745626244076,-181.08010149,0.00026833,2]
[359007369,1745626244085,-248.71531821,0.00026833,2]
[359007372,1745626244095,-1929.21,0.00026835,2]
[359007373,1745626244104,-41374.91506398,0.0002699,2]
[359007376,1745626244114,-500.0,0.00027,2]
[359007378,1745626244123,-4238.61462428,0.00027107,7]
[359007380,1745626244133,-150.0,0.00027126,2]
[359007382,1745626244142,-150.0,0.00027144,2]
[359007384,1745626244151,-150.0,0.00027153,2]
[359007386,1745626244161,-1000.0,0.00027156,2]
[359007388,1745626244170,-14147.76321373,0.0002716,2]
[359007390,1745626244180,-150.0,0.00027162,2]
[359007392,1745626244189,-150.0,0.00027164,2]
[359007394,1745626244198,-150.0,0.00027165,2]
[359007396,1745626244208,-266.77,0.00027168,2]
[359007397,1745626244217,-791.84862249,0.00027171,2]
[359007400,1745626244227,-150.0,0.00027177,2]
[359007401,1745626244236,-150.0,0.00027192,2]
[359007403,1745626244247,-150.0,0.00027192,2]
[359007405,1745626244256,-150.0,0.00027199,2]
[359007407,1745626244265,-150.0,0.00027211,2]
[359007409,1745626244275,-150.0,0.00027211,2]
[359007411,1745626244284,-150.0,0.00027216,2]
[359007413,1745626244293,-150.0,0.00027216,2]
[359007415,1745626244303,-150.0,0.00027224,2]
[359007418,1745626244314,-150.0,0.00027224,2]
[359007420,1745626244323,-150.0,0.00027229,2]
[359007422,1745626244333,-150.0,0.00027231,2]
[359007424,1745626244343,-150.0,0.00027242,2]
[359007425,1745626244352,-150.0,0.00027247,2]
[359007427,1745626244362,-150.0,0.00027249,2]
[359007430,1745626244372,-150.0,0.00027254,2]
[359007432,1745626244381,-150.0,0.00027255,2]
[359007434,1745626244391,-150.0,0.00027256,2]
[359007436,1745626244401,-150.0,0.00027259,2]
[359007438,1745626244410,-150.0,0.00027261,2]
[359007440,1745626244419,-302.1877128,0.00027263,2]
[359007441,1745626244429,-150.0,0.00027265,2]
[359007443,1745626244438,-150.0,0.00027268,2]
[359007444,1745626244448,-150.0,0.00027269,2]
[359007445,1745626244458,-150.0,0.00027283,2]
[359007446,1745626244468,-150.0,0.00027283,2]
[359007447,1745626244479,-150.0,0.00027283,2]
[359007448,1745626244488,-150.0,0.00027285,2]
[359007449,1745626244499,-150.0,0.00027299,2]
[359007450,1745626244509,-150.0,0.00027302,2]
[359007451,1745626244520,-150.0,0.00027303,2]
[359007452,1745626244530,-150.0,0.00027304,2]
[359007453,1745626244540,-293.35905692,0.00027305,2]
[359007454,1745626244550,-150.0,0.00027307,2]
[359007455,1745626244560,-150.0,0.00027309,2]
[359007456,1745626244570,-150.0,0.00027316,2]
[359007457,1745626244579,-150.0,0.00027321,2]
[359007458,1745626244589,-150.0,0.00027326,2]
[359007459,1745626244599,-1000.0,0.00027327,2]
[359007460,1745626244609,-150.0,0.00027327,2]
[359007461,1745626244619,-2477.0454656,0.00027328,4]
[359007462,1745626244629,-150.0,0.00027336,2]
[359007463,1745626244639,-150.0,0.0002734,2]
[359007464,1745626244648,-150.0,0.0002734,2]
[359007465,1745626244658,-150.0,0.00027343,2]
[359007466,1745626244667,-150.0,0.0002736,2]
[359007467,1745626244677,-150.0,0.0002737,2]
[359007468,1745626244686,-150.0,0.00027375,2]
[359007469,1745626244696,-150.0,0.00027375,2]
[359007470,1745626244706,-150.0,0.00027377,2]
[359007471,1745626244715,-150.0,0.00027381,2]
[359007472,1745626244725,-150.0,0.00027381,2]
[359007473,1745626244735,-150.0,0.00027381,2]
[359007474,1745626244745,-150.0,0.00027381,2]
[359007475,1745626244754,-150.0,0.00027381,2]
[359007476,1745626244764,-152.0,0.00027386,2]
[359007477,1745626244774,-150.0,0.00027388,2]
[359007479,1745626244784,-150.0,0.00027395,2]
[359007481,1745626244793,-500.0,0.00027396,2]
[359007482,1745626244803,-500.0,0.00027396,2]
[359007483,1745626244813,-500.0,0.00027396,2]
[359007484,1745626244822,-500.0,0.00027396,2]
[359007485,1745626244832,-500.0,0.00027396,2]
[359007486,1745626244842,-500.0,0.00027396,2]
[359007487,1745626244851,-500.0,0.00027396,2]
[359007488,1745626244861,-290.06658599,0.00027396,10]
[359007489,1745626244871,-500.0,0.00027396,2]
[359007490,1745626244882,-500.0,0.00027396,2]
[359007491,1745626244892,-300.0,0.00027396,10]
[359007492,1745626244902,-300.0,0.00027396,10]
[359007493,1745626244911,-150.0,0.00027396,2]
[359007494,1745626244921,-150.0,0.00027396,2]
[359007495,1745626244930,-151.540721,0.00027397,7]
[359007496,1745626244941,-153.22128,0.00027397,7]
[359007497,1745626244951,-270.37505,0.00027397,7]
[359007498,1745626244960,-297.291582,0.00027397,7]
[359007499,1745626244970,-151.0,0.00027397,7]
[359007500,1745626244983,-151.0,0.00027397,7]
[359007501,1745626244993,-151.0,0.00027397,7]
[359007502,1745626245003,-185.77156,0.00027397,7]
[359007503,1745626245014,-151.0,0.00027397,7]
[359007504,1745626245025,-151.0,0.00027397,7]
[359007505,1745626245035,-151.0,0.00027397,7]
[359007506,1745626245044,-321.802195,0.00027397,7]
[359007508,1745626245055,-151.0,0.00027397,7]
[359007510,1745626245066,-321.802195,0.00027397,7]
[359007512,1745626245076,-153.191078,0.00027397,7]
[359007514,1745626245086,-153.832905,0.00027397,7]
[359007516,1745626245095,-151.489608,0.00027397,7]
[359007518,1745626245105,-151.0,0.00027397,7]
[359007520,1745626245114,-152.208839,0.00027397,7]
[359007522,1745626245124,-500.0,0.00027397,2]
[359007524,1745626245134,-500.0,0.00027397,2]
[359007526,1745626245143,-151.0,0.00027397,7]
[359007528,1745626245153,-500.0,0.00027397,2]
[359007530,1745626245163,-500.0,0.00027397,2]
[359007532,1745626245173,-347.97617238,0.00027397,2]
[359007535,1745626245185,-535.6247154,0.00027397,2]
[359007537,1745626245195,-500.0,0.00027397,2]
[359007539,1745626245204,-500.0,0.00027397,2]
[359007541,1745626245214,-500.0,0.00027397,2]
[359007543,1745626245224,-609.62744073,0.00027397,2]
[359007545,1745626245234,-605.81017872,0.00027397,2]
[359007547,1745626245244,-500.0,0.00027397,2]
[359007549,1745626245254,-500.0,0.00027397,2]
[359007551,1745626245264,-500.0,0.00027397,2]
[359007553,1745626245274,-500.0,0.00027397,2]
[359007555,1745626245284,-500.0,0.00027397,2]
[359007557,1745626245294,-500.0,0.00027397,2]
[359007559,1745626245304,-500.0,0.00027397,2]
[359007561,1745626245314,-507.88169253,0.00027397,2]
[359007563,1745626245324,-500.0,0.00027397,2]
[359007565,1745626245334,-643.47836793,0.00027397,2]
[359007567,1745626245344,-507.21769414,0.00027397,2]
[359007569,1745626245354,-500.0,0.00027397,2]
[359007597,1745626245626,-500.0,0.00027397,2]
[359007599,1745626245636,-500.0,0.00027397,2]
[359007601,1745626245646,-308.5152093,0.00027397,2]
[359007603,1745626245656,-500.0,0.00027397,2]
[359007605,1745626245666,-294.29958013,0.00027397,2]
[359007607,1745626245676,-500.0,0.00027397,2]
[359007609,1745626245686,-500.0,0.00027397,2]
[359007611,1745626245696,-500.0,0.00027397,2]
[359007613,1745626245706,-500.0,0.00027397,2]
[359007615,1745626245716,-151.0,0.00027397,7]
[359007617,1745626245726,-151.0,0.00027397,7]
[359007619,1745626245735,-286.50340961,0.00027397,2]
[359007621,1745626245745,-500.0,0.00027397,2]
[359007623,1745626245755,-153.641164,0.00027397,7]
[359007625,1745626245765,-500.0,0.00027397,2]
[359007627,1745626245774,-554.12,0.00027397,2]
[359007629,1745626245784,-500.0,0.00027397,2]
[359007631,1745626245794,-500.0,0.00027397,2]
[359007633,1745626245804,-781.89,0.00027397,2]
[359007635,1745626245814,-500.0,0.00027397,2]
[359007637,1745626245823,-500.0,0.00027397,2]
[359007639,1745626245833,-500.0,0.00027397,2]